bitfinex-derivatives/quotes_ETHF0:USTF0_20251021
["timestamp","ask_amount","ask_price","bid_price","bid_amount"]
[1761010009225,1.22624523,3964.0,3963.9,0.7532]
[1761010009524,0.91234523,3964.0,3963.9,0.7532]
[1761010009720,0.45834523,3964.0,3963.9,0.7532]
[1761010009925,0.00294523,3964.0,3963.9,0.7532]
[1761010010332,0.77224523,3964.0,3963.9,0.7532]
[1761010014126,0.00294523,3964.0,3963.9,0.7532]
[1761010014932,0.23074523,3964.0,3963.9,0.7532]
[1761010016128,0.00294523,3964.0,3963.9,0.7532]
[1761010020331,0.21914523,3964.0,3963.9,0.7532]
[1761010021126,0.00294523,3964.0,3963.9,0.7532]
[1761010022137,0.76164523,3964.0,3963.9,0.7532]
[1761010022339,0.57424523,3964.0,3963.5,1.45838613]
[1761010022545,0.7587,3963.7,3963.6,0.5503]
[1761010022750,0.7587,3963.7,3963.6,0.7812]
[1761010022952,1.21273,3963.7,3963.6,0.7812]
[1761010024541,0.54174523,3964.0,3963.9,0.4393]
[1761010024846,1.02261914,3964.0,3963.9,1.90088613]
[1761010025052,1.23881914,3964.0,3963.9,1.90088613]
[1761010025244,1.56141914,3964.0,3963.9,1.90088613]
[1761010026953,1.78131914,3964.0,3963.9,1.69248613]
[1761010027251,0.89019,3963.1,3963.0,0.4393]
[1761010027453,0.89019,3963.1,3963.0,0.5767]
[1761010027753,0.89019,3963.1,3963.0,0.9186]
[1761010027957,1.21279,3963.1,3963.0,0.9186]
[1761010029350,0.67029,3963.1,3963.0,0.9186]
[1761010029850,8.925,3963.8,3963.1,0.3419]
[1761010030057,1.21276,3963.4,3963.3,0.7812]
[1761010030354,1.77920234,3963.4,3963.3,0.7812]
[1761010030544,1.02050234,3963.4,3963.3,0.7812]
[1761010030741,0.45406,3963.4,3963.3,0.7812]
[1761010031554,0.67026,3963.4,3963.3,0.7812]
[1761010031852,0.45406,3963.4,3963.3,0.7812]
[1761010035454,0.67026,3963.4,3963.3,0.7812]
[1761010036255,0.67026,3963.4,3963.3,1.23527]
[1761010036455,0.45406,3963.4,3963.3,1.23527]
[1761010037054,0.45406,3963.4,3963.3,0.7812]
[1761010037357,1.22826,3963.4,3963.3,0.7812]
[1761010038161,1.22829,3963.1,3963.0,0.4472]
[1761010038652,1.22829,3963.1,3963.0,1.37901]
[1761010038960,0.2209,3963.1,3963.0,1.37901]
[1761010040254,0.67497,3963.3,3963.2,0.7886]
[1761010041056,0.45407,3963.3,3963.2,1.24268]
[1761010042560,0.67497,3963.3,3963.2,1.24268]
[1761010042860,1.22827,3963.3,3963.2,0.7886]
[1761010045358,0.67497,3963.3,3963.2,0.7886]
[1761010047457,0.3319,3963.5,3963.2,0.7886]
[1761010047657,0.45405,3963.5,3963.4,0.78956]
[1761010047962,0.45405,3963.5,3963.4,1.23176]
[1761010048160,0.225,3963.8,3963.7,0.7777]
[1761010048562,1.24582985,3963.8,3963.7,0.7777]
[1761010048758,0.56681985,3963.8,3963.7,0.7777]
[1761010048960,0.68194523,3964.0,3963.8,0.89621]
[1761010049164,0.79186258,3963.9,3963.8,0.4422]
[1761010049566,1.12486258,3963.9,3963.8,0.7777]
[1761010051356,0.79186258,3963.9,3963.8,0.7777]
[1761010051562,1.12486258,3963.9,3963.8,0.7777]
[1761010052453,1.35486258,3963.9,3963.8,0.7777]
[1761010052655,0.788,3963.7,3963.6,0.5488]
[1761010052854,1.24203,3963.7,3963.6,0.7777]
[1761010054563,0.67903,3963.7,3963.6,1.23174]
[1761010055265,1.01203,3963.7,3963.6,1.23174]
[1761010057266,0.225,3963.7,3963.6,1.23174]
[1761010057470,0.45402,3963.8,3963.7,1.23173]
[1761010057767,1.02105979,3963.8,3963.7,1.23173]
[1761010058366,0.22794523,3964.0,3963.8,0.45401]
[1761010058668,0.22794523,3964.0,3963.5,1.483205]
[1761010058669,0.45693523,3964.0,3963.9,1.2317]
[1761010058967,1.81202435,3964.0,3963.9,0.7777]
[1761010060574,1.24201,3963.8,3963.7,0.66733]
[1761010061072,1.24201,3963.8,3963.7,0.5488]
[1761010061273,1.24201,3963.8,3963.7,1.23173]
[1761010062872,0.90901,3963.8,3963.7,1.23173]
[1761010063074,0.00294523,3964.0,3963.7,0.7777]
[1761010063271,0.56094523,3964.0,3963.9,1.2317]
[1761010063464,0.79094523,3964.0,3963.9,1.2317]
[1761010063673,1.02495343,3964.0,3963.9,1.2317]
[1761010064676,1.24894343,3964.0,3963.9,1.2317]
[1761010065062,0.56995343,3964.0,3963.9,1.2317]
[1761010065375,0.00294523,3964.0,3963.9,2.576205]
[1761010067273,0.68193523,3964.0,3963.9,2.122205]
[1761010067571,1.24493523,3964.0,3963.9,2.122205]
[1761010068869,0.45404,3963.6,3963.5,1.925405]
[1761010069075,1.24204,3963.6,3963.5,1.925405]
[1761010069268,0.788,3963.6,3963.5,2.379455]
[1761010069473,0.225,3963.6,3963.5,2.714955]
[1761010072275,0.67904,3963.6,3963.5,2.714955]
[1761010072469,1.01204,3963.6,3963.5,2.714955]
[1761010072972,1.24204,3963.6,3963.5,2.714955]
[1761010074180,1.24204,3963.6,3963.5,2.260905]
[1761010074478,1.24204,3963.6,3963.5,2.714955]
[1761010074785,1.24204,3963.6,3963.5,0.5488]
[1761010074972,1.24204,3963.6,3963.5,0.7777]
[1761010075272,1.24204,3963.6,3963.5,1.23175]
[1761010075466,0.788,3963.6,3963.5,1.37045]
[1761010075980,0.225,3963.6,3963.5,1.37045]
[1761010076274,0.558,3963.6,3963.5,1.37045]
[1761010077370,0.225,3963.6,3963.5,1.37045]
[1761010077880,0.67904,3963.6,3963.5,1.37045]
[1761010079378,0.78747,3963.3,3963.2,1.57406829]
[1761010079570,1.80035406,3963.3,3963.2,0.544]
[1761010080280,1.23289,3963.1,3963.0,0.5657]
[1761010080675,1.23289,3963.1,3963.0,0.8982]
[1761010081180,0.68405,3963.5,3963.4,0.7677]
[1761010081484,1.80021715,3963.5,3963.4,0.7677]
[1761010084582,1.46681715,3963.5,3963.4,0.7677]
[1761010084970,1.80021715,3963.5,3963.4,0.7677]
[1761010088893,0.56736715,3963.5,3963.4,0.7677]
[1761010089095,0.3334,3963.9,3963.8,0.7677]
[1761010089096,0.23,3963.9,3963.8,0.7677]
[1761010089388,1.34467855,3963.9,3963.8,0.7677]
[1761010089784,1.34467855,3963.9,3963.8,0.544]
[1761010090590,1.34467855,3963.9,3963.6,0.3325]
[1761010090591,0.56587855,3963.9,3963.6,0.3325]
[1761010090797,0.56587855,3963.9,3963.6,0.544]
[1761010090798,0.7788,3963.7,3963.6,0.544]
[1761010091100,0.7788,3963.7,3963.6,0.7677]
[1761010093898,0.7788,3963.7,3963.5,0.1305]
[1761010093899,0.4454,3963.4,3963.3,0.544]
[1761010094101,1.23286,3963.4,3963.3,0.7677]
[1761010094500,0.89946,3963.4,3963.3,0.7677]
[1761010095005,0.89946,3963.4,3963.3,1.22177]
[1761010095302,0.4454,3963.4,3963.3,1.22177]
[1761010095604,0.23,3963.4,3963.3,1.22177]
[1761010096307,1.23896,3963.4,3963.3,0.7677]
[1761010097201,0.89846,3963.4,3963.3,1.22177]
[1761010098700,0.68406,3963.4,3963.3,1.22177]
[1761010102803,0.3405,3963.7,3963.6,0.766]
[1761010102804,0.45403,3963.7,3963.6,0.766]
[1761010103001,1.23875429,3963.7,3963.6,0.766]
[1761010103305,1.57925429,3963.7,3963.6,0.766]
[1761010103498,1.12522429,3963.7,3963.6,1.22004]
[1761010103705,0.78472429,3963.7,3963.6,1.22004]
[1761010104104,0.00294523,3964.0,3963.9,0.766]
[1761010104608,0.22124523,3964.0,3963.9,0.766]
[1761010104808,0.78771852,3964.0,3963.9,0.766]
[1761010105606,1.24170852,3964.0,3963.9,1.22]
[1761010108304,0.56941852,3964.0,3963.9,1.22]
[1761010108606,0.00294523,3964.0,3963.9,1.22]
[1761010109007,0.56924423,3964.0,3963.9,1.22]
[1761010109508,0.00294523,3964.0,3963.9,1.22]
[1761010111506,0.45693523,3964.0,3963.9,1.22]
[1761010111804,1.02413523,3964.0,3963.9,0.766]
[1761010112011,1.24313523,3964.0,3963.9,0.766]
[1761010112903,1.80954274,3964.0,3963.9,0.766]
[1761010113102,1.24313523,3964.0,3963.9,1.22]
[1761010113612,0.89763523,3964.0,3963.9,1.22]
[1761010114313,1.46408533,3964.0,3963.9,1.22]
[1761010115914,1.46408533,3964.0,3963.9,0.766]
[1761010116115,1.80958533,3964.0,3963.9,0.766]
[1761010118210,1.24508533,3964.0,3963.9,1.22]
[1761010118416,0.45693523,3964.0,3963.9,1.22]
[1761010118616,1.24313523,3964.0,3963.9,0.766]
[1761010121612,1.24313523,3964.0,3963.9,1.22]
[1761010121812,0.45693523,3964.0,3963.9,1.22]
[1761010123416,0.00294523,3964.0,3963.9,1.22]
[1761010126922,0.00294523,3964.0,3963.9,2.34039034]
[1761010136930,0.00294523,3964.0,3963.9,11.25739034]
[1761010140733,0.22724523,3964.0,3963.9,11.25739034]
[1761010141532,0.00294523,3964.0,3963.9,11.25739034]
[1761010143636,0.22724523,3964.0,3963.9,11.25739034]
[1761010144035,0.00294523,3964.0,3963.9,11.25739034]
[1761010149140,0.00294523,3964.0,3963.9,12.61791967]
[1761010154139,0.00294523,3964.0,3963.9,11.25739034]
[1761010154737,0.00294523,3964.0,3963.9,11.48074942]
[1761010157633,0.2262,3964.9,3964.8,0.7685]
[1761010157833,1.22199,3964.9,3964.8,0.7685]
[1761010158138,1.78744572,3964.9,3964.8,0.7685]
[1761010158435,1.24795793,3964.9,3964.8,0.7685]
[1761010158642,1.57495793,3964.9,3964.8,0.7685]
[1761010158833,1.78985793,3964.9,3964.8,0.7685]
[1761010160036,1.33596793,3964.9,3964.8,0.7685]
[1761010160232,0.56786793,3964.9,3964.8,0.7685]
[1761010160438,1.33596793,3964.9,3964.8,0.7685]
[1761010162544,1.33596793,3964.9,3964.5,9.0418]
[1761010162545,0.7681,3964.6,3964.5,9.69213]
[1761010162736,1.78747572,3964.6,3964.5,9.2382]
[1761010162936,1.78747572,3964.6,3964.5,9.6835]
[1761010163747,1.78747572,3964.6,3964.5,0.7685]
[1761010164047,1.78747572,3964.6,3964.5,0.3232]
[1761010164746,1.78747572,3964.6,3964.5,0.5486]
[1761010179143,1.78747572,3964.6,3964.5,1.00253]
[1761010179655,1.78747572,3964.6,3964.5,0.7652]
[1761010179846,1.78747572,3964.6,3964.5,1.21913]
[1761010185355,1.78747572,3964.6,3964.5,0.7652]
[1761010185758,1.78747572,3964.6,3964.5,0.5486]
[1761010188151,1.23046,3964.3,3964.2,1.36179865]
[1761010188356,1.4593438,3964.3,3964.2,0.3151]
[1761010188546,1.4593438,3964.3,3964.2,0.5316]
[1761010188953,1.7948438,3964.3,3964.2,0.5316]
[1761010190257,0.5643838,3964.3,3964.2,1.20217]
[1761010190447,0.5517,3964.6,3964.5,0.5647]
[1761010190760,1.56982721,3964.6,3964.5,0.5647]
[1761010190958,1.56982721,3964.6,3964.5,0.8798]
[1761010192360,0.78040721,3964.6,3964.5,1.33373]
[1761010197166,1.11590721,3964.6,3964.5,1.33373]
[1761010198862,0.78040721,3964.6,3964.5,1.33373]
[1761010199068,0.56420721,3964.6,3964.5,1.33373]
[1761010199361,0.23251221,3964.9,3964.8,1.2336]
[1761010199558,0.79690739,3964.9,3964.8,1.2336]
[1761010199971,1.58119739,3964.9,3964.8,1.2336]
[1761010200265,1.80999739,3964.9,3964.8,1.2336]
[1761010200467,1.35610739,3964.9,3964.8,1.2336]
[1761010200669,1.02570739,3964.9,3964.8,1.2336]
[1761010201264,0.56680739,3964.9,3964.8,2.57734942]
[1761010201467,0.00241221,3964.9,3964.8,8.93914807]
[1761010201868,0.79171221,3964.9,3964.8,1.2336]
[1761010203070,0.23251221,3964.9,3964.8,1.2336]
[1761010203369,0.00241221,3964.9,3964.8,2.57734942]
[1761010208777,0.4589,3965.9,3965.8,0.4518]
[1761010208969,0.91268,3965.9,3965.8,0.7797]
[1761010209172,1.47420696,3965.9,3965.8,0.7797]
[1761010209470,1.80460696,3965.9,3965.8,0.7797]
[1761010209668,1.80712998,3965.9,3965.8,0.78172992]
[1761010210474,1.806943,3965.9,3965.8,0.78172992]
[1761010212676,0.79182302,3965.9,3965.8,0.78172992]
[1761010213268,1.24560302,3965.9,3965.8,0.78172992]
[1761010214168,1.80668822,3965.9,3965.8,0.78172992]
[1761010215383,0.79182302,3965.9,3965.8,0.78172992]
[1761010215680,0.46142302,3965.9,3965.8,0.78172992]
[1761010215880,0.23262302,3965.9,3965.8,0.78172992]
[1761010216280,0.23262302,3965.9,3965.8,1.23551992]
[1761010216682,0.23262302,3965.9,3965.8,2.35453933]
[1761010217174,0.68639302,3965.9,3965.8,2.35453933]
[1761010217677,0.68639302,3965.9,3965.8,1.90074933]
[1761010217985,1.02539302,3965.9,3965.8,1.90074933]
[1761010218183,1.25509302,3965.9,3965.8,0.78172992]
[1761010221088,0.46232302,3965.9,3965.8,1.23551992]
[1761010221690,0.91609302,3965.9,3965.8,1.23551992]
[1761010221987,0.46232302,3965.9,3965.8,1.23551992]
[1761010222589,0.23262302,3965.9,3965.8,1.23551992]
[1761010224291,1.25509302,3965.9,3965.8,0.78172992]
[1761010224683,1.25509302,3965.9,3965.8,1.23551992]
[1761010224684,0.80132302,3965.9,3965.8,1.23551992]
[1761010226587,0.23262302,3965.9,3965.8,2.35453933]
[1761010227694,1.24059302,3965.9,3965.8,0.78172992]
[1761010228386,1.24059302,3965.9,3965.8,1.23551992]
[1761010229484,1.24059302,3965.9,3965.8,0.00202992]
[1761010229796,1.80222451,3965.9,3965.8,0.00202992]
[1761010231988,6.80222451,3965.9,3965.8,0.00202992]
[1761010232183,6.80222451,3965.9,3964.5,0.35052508]
[1761010232184,0.77842,3964.7,3964.5,0.35052508]
[1761010232389,0.7666,3964.6,3964.5,0.90842508]
[1761010232698,0.7666,3964.6,3964.5,0.35052508]
[1761010232888,0.7666,3964.6,3964.0,0.5579]
[1761010232889,1.22058,3964.1,3964.0,0.5579]
[1761010233398,1.22058,3964.1,3964.0,0.5604279]
[1761010233694,1.22058,3964.1,3964.0,0.0025279]
[1761010233996,1.22058,3964.1,3964.0,0.5604279]
[1761010234590,1.22058,3964.1,3964.0,0.0025279]
[1761010241101,1.22058,3964.1,3964.0,0.5604279]
[1761010242402,1.22058,3964.1,3964.0,0.9007279]
[1761010243906,0.7666,3964.1,3964.0,0.9007279]
[1761010244200,0.7666,3964.1,3964.0,0.0025279]
[1761010244609,0.7666,3964.1,3964.0,0.3426279]
[1761010244997,0.7666,3964.1,3964.0,0.5604279]
[1761010245304,0.7666,3964.1,3962.5,1.49029865]
[1761010245305,0.45415,3962.7,3962.5,1.49029865]
[1761010245505,0.3245,3962.2,3962.0,1.36179865]
[1761010245698,0.7666,3961.8,3961.7,0.4296]
[1761010245899,0.7666,3961.8,3961.7,0.7697]
[1761010246100,0.7666,3961.8,3961.7,1.88871941]
[1761010246406,0.44472712,3961.8,3961.7,1.89071984]
[1761010248907,0.76922712,3961.8,3961.7,1.89071984]
[1761010250303,0.44472712,3961.8,3961.7,1.89071984]
[1761010250505,0.00262712,3961.8,3961.7,1.89071984]
[1761010250704,0.00262712,3961.8,3961.7,6.89071984]
[1761010251604,0.3245,3962.6,3962.5,0.8982]
[1761010251605,0.7666,3962.6,3962.5,0.8982]
[1761010252412,0.7666,3962.6,3962.5,0.7697]
[1761010252599,0.76965114,3962.6,3962.5,0.7697]
[1761010253210,0.76965114,3962.6,3962.5,0.8982]
[1761010253400,0.76965114,3962.6,3962.5,0.7697]
[1761010257910,0.44515114,3962.6,3962.5,0.9023]
[1761010258413,0.44515114,3962.6,3962.5,1.35646]
[1761010260625,0.00305114,3962.6,3962.5,1.35646]
[1761010260913,0.2134,3963.5,3963.4,1.23486]
[1761010261106,0.2134,3963.5,3963.4,2.35387941]
[1761010261302,0.7675,3963.1,3963.0,0.3375]
[1761010261511,0.7675,3962.8,3962.7,0.89744]
[1761010261911,0.7675,3962.8,3962.7,1.23494]
[1761010262111,0.77019745,3962.8,3962.7,1.23494]
[1761010262808,0.44119745,3962.8,3962.7,1.23494]
[1761010263015,0.77019745,3962.8,3962.7,1.23494]
[1761010263820,0.77019745,3962.8,3962.7,0.7808]
[1761010266014,0.00269745,3962.8,3962.7,0.7808]
[1761010268316,0.00269745,3962.8,3962.7,1.23494]
[1761010273219,0.7675,3963.7,3963.6,0.7808]
[1761010273532,1.33010503,3963.7,3963.6,0.7808]
[1761010273731,1.33010503,3963.7,3963.6,0.552]
[1761010274517,1.33267669,3963.7,3963.6,0.552]
[1761010275517,0.4385,3963.4,3963.3,1.00607]
[1761010275717,0.7675,3963.4,3963.3,1.00607]
[1761010276021,0.7675,3963.4,3963.3,0.552]
[1761010276425,0.7675,3963.4,3963.3,0.7808]
[1761010279726,0.2134,3963.4,3963.3,0.7808]
[1761010279919,1.00010166,3963.7,3963.6,0.7828]
[1761010280118,1.56323027,3963.7,3963.6,0.7828]
[1761010280327,1.78563027,3963.7,3963.6,0.7828]
[1761010282930,1.78563027,3963.7,3963.6,0.5539]
[1761010283129,1.21999,3963.2,3963.1,9.8178]
[1761010283426,0.7659,3963.2,3963.1,9.8178]
[1761010283628,0.7659,3963.2,3963.1,10.1439]
[1761010284827,0.4454,3963.2,3963.1,10.1439]
[1761010285034,1.21994,3963.6,3963.5,0.9158]
[1761010285443,0.89944,3963.6,3963.5,0.9158]
[1761010285627,0.67704,3963.6,3963.5,0.9158]
[1761010285826,0.223,3963.6,3963.5,1.36985]
[1761010286026,0.00257166,3963.7,3963.6,1.23684]
[1761010286236,0.45660166,3963.7,3963.6,1.23684]
[1761010286437,0.67960166,3963.7,3963.6,1.23684]
[1761010286930,0.67960166,3963.7,3963.6,0.7828]
[1761010287134,1.785921,3963.7,3963.6,0.7828]
[1761010288335,1.785921,3963.7,3963.6,0.3261]
[1761010288538,1.21454,3963.6,3963.5,1.19675]
[1761010289035,0.87804,3963.6,3963.5,1.32885]
[1761010290233,0.87804,3963.6,3963.5,0.8748]
[1761010290435,1.21454,3963.6,3963.5,0.8748]
[1761010290640,1.21454,3963.6,3963.5,1.32885]
[1761010293338,0.66304,3963.6,3963.5,1.32885]
[1761010295341,0.45404,3963.6,3963.5,1.32885]
[1761010295941,0.00257166,3963.7,3963.6,1.19674]
[1761010297040,0.66560166,3963.7,3963.6,1.19674]
[1761010297236,1.00210166,3963.7,3963.6,0.7427]
[1761010297844,1.00210166,3963.7,3963.6,1.19674]
[1761010299046,0.45660166,3963.7,3963.6,1.19674]
[1761010299533,0.00257166,3963.7,3963.6,1.19674]
[1761010300645,0.00257166,3963.7,3963.6,2.55853865]
[1761010301044,0.21157166,3963.7,3963.6,1.19674]
[1761010301941,0.54807166,3963.7,3963.6,0.7427]
[1761010302139,0.76307166,3963.7,3963.6,0.7427]
[1761010302339,1.32607125,3963.7,3963.6,0.7427]
[1761010302541,1.32607125,3963.7,3963.6,0.5335]
[1761010303549,1.32607125,3963.7,3963.6,0.7427]
[1761010305245,0.56557125,3963.7,3963.6,0.7427]
[1761010305449,0.00257166,3963.7,3963.6,0.7427]
[1761010307949,0.21157166,3963.7,3963.6,0.7427]
[1761010309259,0.21157166,3963.7,3963.6,1.19674]
[1761010311052,1.21710166,3963.7,3963.6,1.19674]
[1761010311359,1.78039117,3963.7,3963.6,0.7427]
[1761010311656,1.78039117,3963.7,3963.6,0.5335]
[1761010311856,0.87805,3963.5,3963.4,0.5335]
[1761010312157,0.87805,3963.5,3963.4,0.98756]
[1761010312342,1.21455,3963.5,3963.4,0.98756]
[1761010312545,1.21455,3963.5,3963.4,1.19676]
[1761010313056,0.7605,3963.5,3963.4,1.19676]
[1761010313951,0.209,3963.2,3963.1,1.36179865]
[1761010314153,0.45412,3962.9,3962.8,1.67809865]
[1761010314352,1.21462,3962.9,3962.8,0.3163]
[1761010314656,1.77785364,3962.9,3962.8,0.3163]
[1761010315156,1.21462,3962.9,3962.8,0.3163]
[1761010315559,1.21462,3962.9,3962.8,0.5335]
[1761010315860,1.21462,3962.9,3962.8,0.7427]
[1761010316259,1.21462,3962.9,3962.8,0.5335]
[1761010317056,0.45415,3962.7,3962.6,0.3163]
[1761010317261,0.424,3962.4,3962.3,9.89068]
[1761010317561,0.424,3962.4,3962.3,10.09988]
[1761010317763,0.7702,3962.4,3962.3,10.09988]
[1761010320160,0.7702,3962.4,3962.3,0.7427]
[1761010320767,1.22749,3962.3,3962.2,0.37133742]
[1761010320966,0.7733,3961.8,3961.7,0.00200043]
[1761010321958,1.3349228,3961.8,3961.7,0.00200043]
[1761010322159,1.2276,3961.3,3961.2,0.37515009]
[1761010322558,1.22763,3961.1,3961.0,0.5616]
[1761010322763,0.7733,3960.7,3960.6,0.7731]
[1761010322964,0.7733,3960.7,3960.6,0.9718921]
[1761010323171,0.77623401,3960.7,3960.6,0.97477778]
[1761010323559,0.77623401,3960.7,3960.6,0.20167778]
[1761010323764,0.77623401,3960.7,3960.6,0.76327778]
[1761010323970,0.77623401,3960.7,3960.6,0.97477778]
[1761010324764,0.00293401,3960.7,3960.6,0.97477778]
[1761010325066,0.21763401,3960.7,3960.6,0.97477778]
[1761010325458,0.56383401,3960.7,3960.6,0.97477778]
[1761010326764,0.77623401,3960.7,3960.6,0.97477778]
[1761010327463,0.77623401,3960.7,3960.6,0.00288568]
[1761010328864,5.77623401,3960.7,3960.6,0.00288568]
[1761010329066,5.77623401,3960.7,3960.1,0.20371277]
[1761010329067,0.4271,3959.8,3959.7,0.7731]
[1761010329268,1.22779,3959.7,3959.6,0.57158227]
[1761010329565,0.7733,3959.7,3959.1,0.3465]
[1761010329771,0.7733,3958.9,3958.8,0.4266]
[1761010330263,0.7733,3958.9,3958.8,0.7731]
[1761010330466,0.7733,3959.3,3959.2,0.7731]
[1761010333973,0.2147,3959.3,3959.2,0.7731]
[1761010334371,0.7733,3959.3,3959.2,0.7731]
[1761010335465,0.3462,3959.7,3959.2,0.7731]
[1761010335673,0.7733,3960.0,3959.9,0.7731]
[1761010335971,0.7733,3960.0,3959.9,1.22756]
[1761010336269,41.5733,3960.0,3959.9,1.22756]
[1761010336668,0.2147,3960.0,3959.9,1.22756]
[1761010336877,1.34757487,3960.7,3959.9,1.22756]
[1761010336878,0.00293401,3960.7,3960.6,0.7947]
[1761010337074,0.22753401,3960.7,3960.6,0.7947]
[1761010337265,0.7679,3960.3,3960.2,0.5791]
[1761010337571,0.7679,3960.3,3960.2,0.7947]
[1761010337869,0.7679,3960.6,3960.5,0.3472]
[1761010338175,0.7679,3960.6,3960.5,0.7947]
[1761010338361,0.45439,3960.5,3960.0,0.3699]
[1761010338566,0.7679,3960.2,3960.1,0.3472]
[1761010338768,0.7679,3960.2,3960.1,0.5791]
[1761010339074,0.4356,3960.2,3960.1,0.7947]
[1761010339477,0.22753401,3960.7,3960.6,0.7947]
[1761010339875,0.77083401,3960.7,3960.6,0.7947]
[1761010340971,0.22753401,3960.7,3960.6,0.7947]
[1761010341671,0.00293401,3960.7,3960.6,0.7947]
[1761010342081,0.22753401,3960.7,3960.6,0.7947]
[1761010342266,0.43853401,3960.7,3960.6,0.7947]
[1761010342465,0.00293401,3960.7,3960.6,0.7947]
[1761010343366,0.22753401,3960.7,3960.6,0.7947]
[1761010343768,0.00293401,3960.7,3960.6,0.7947]
[1761010344470,0.00293401,3960.7,3960.6,5.7947]
[1761010346077,0.00293401,3960.7,3960.6,0.7947]
[1761010346280,0.22753401,3960.7,3960.6,0.7947]
[1761010346580,0.00293401,3960.7,3960.6,0.7947]
[1761010347077,0.22753401,3960.7,3960.6,0.7947]
[1761010347780,0.00293401,3960.7,3960.6,0.7947]
[1761010351984,0.00293401,3960.7,3960.6,1.24908]
[1761010353979,0.00293401,3960.7,3960.6,0.7947]
[1761010354279,0.44253401,3960.7,3960.6,0.8002]
[1761010354483,0.00293401,3960.7,3960.6,0.8002]
[1761010354685,0.00293401,3960.7,3960.6,1.25458]
[1761010357283,0.00293401,3960.7,3960.6,2.37701003]
[1761010363283,0.79013401,3960.7,3960.6,0.8002]
[1761010363587,0.00293401,3960.7,3960.6,1.92263003]
[1761010363780,0.00293401,3960.7,3960.6,2.37701003]
[1761010364193,0.89385,3961.7,3961.6,0.5533]
[1761010364489,1.46329102,3961.7,3961.6,0.2099]
[1761010364689,1.81089102,3961.7,3961.6,0.2099]
[1761010365178,1.81296535,3961.7,3961.6,0.21168055]
[1761010365385,6.81296535,3961.7,3961.6,0.00178055]
[1761010366092,1.24152,3961.1,3961.0,0.3434]
[1761010366288,1.81212662,3961.1,3961.0,0.3434]
[1761010366687,1.81212662,3961.1,3961.0,0.5533]
[1761010367084,1.24152,3961.1,3961.0,0.55588777]
[1761010368289,1.81220473,3961.1,3961.0,0.55588777]
[1761010369293,1.81220473,3961.1,3961.0,1.23131777]
[1761010369494,0.57068473,3961.1,3961.0,2.4924478]
[1761010369695,0.6714,3961.3,3961.2,0.7744]
[1761010369991,0.7872,3961.1,3961.0,0.55588777]
[1761010370193,1.0105422,3961.1,3961.0,1.37001777]
[1761010370895,1.3581422,3961.1,3961.0,1.37001777]
[1761010371189,1.8124622,3961.1,3961.0,1.37001777]
[1761010372280,1.81273548,3961.1,3961.0,1.37001777]
[1761010373694,1.01081548,3961.1,3961.0,2.4924478]
[1761010374196,1.35841548,3961.1,3961.0,2.4924478]
[1761010374593,1.35841548,3961.1,3961.0,0.77698777]
[1761010374594,1.81273548,3961.1,3961.0,0.77698777]
[1761010374896,1.81273548,3961.1,3961.0,1.23132777]
[1761010377796,1.81273548,3961.1,3961.0,1.01022777]
[1761010379400,1.81273548,3961.1,3961.0,1.23372777]
[1761010380199,1.81273548,3961.1,3961.0,0.00258777]
[1761010381103,1.81273548,3961.1,3961.0,1.37252777]
[1761010381301,1.01081548,3961.1,3961.0,1.37252777]
[1761010381694,1.46513548,3961.1,3961.0,1.37252777]
[1761010381899,1.81013548,3961.1,3961.0,1.37252777]
[1761010384007,1.46513548,3961.1,3961.0,1.37252777]
[1761010384908,1.81013548,3961.1,3961.0,0.91818777]
[1761010385209,1.81013548,3961.1,3961.0,1.37252777]
[1761010387222,1.46513548,3961.1,3961.0,1.37252777]
[1761010387717,0.78831548,3961.1,3961.0,1.37252777]
[1761010387921,0.57121548,3961.1,3961.0,2.4949578]
[1761010388119,0.57188619,3961.2,3961.1,0.89562]
[1761010388621,1.25779619,3961.2,3961.1,0.89562]
[1761010388916,1.82409619,3961.2,3961.1,0.7878]
[1761010389123,1.25222,3961.1,3961.0,0.00258777]
[1761010389331,1.82410619,3961.1,3961.0,0.00258777]
[1761010389622,6.82410619,3961.1,3961.0,0.00258777]
[1761010390211,0.5766,3960.4,3960.3,2.14959865]
[1761010390519,0.5766,3960.4,3960.3,1.24222]
[1761010390520,0.2316,3960.4,3960.3,1.24222]
[1761010390716,0.2316,3961.0,3960.9,0.89565]
[1761010390919,0.5766,3961.0,3960.9,2.36458003]
[1761010391108,0.80334415,3961.0,3960.9,2.36458003]
[1761010391309,0.2316,3961.0,3960.9,2.36704203]
[1761010391511,0.79931,3961.3,3961.0,0.45433]
[1761010391715,1.25221,3961.3,3961.2,0.7878]
[1761010391923,1.82400714,3961.3,3961.2,0.7878]
[1761010393323,1.02469714,3961.3,3961.2,1.24211]
[1761010393625,1.82399714,3961.3,3961.2,1.24211]
[1761010395227,1.82399714,3961.3,3961.2,0.7878]
[1761010396930,1.82399714,3961.3,3961.2,1.24211]
[1761010397119,0.57179714,3961.3,3961.2,2.36454003]
[1761010397430,0.7930267,3961.5,3961.4,1.21029]
[1761010397621,0.79302618,3961.5,3961.4,1.21029]
[1761010398029,0.57182618,3961.5,3961.4,1.21029]
[1761010398223,0.57182618,3961.5,3961.2,1.12243003]
[1761010398224,0.22327433,3961.7,3961.6,1.21027]
[1761010398425,0.79499123,3961.7,3961.6,2.33270003]
[1761010398630,1.13719123,3961.7,3961.6,2.33270003]
[1761010398923,1.36699123,3961.7,3961.6,1.87843003]
[1761010399631,0.451,3961.5,3961.4,0.3213]
[1761010399928,0.925,3961.5,3961.4,0.3213]
[1761010400527,1.37929,3961.5,3961.4,0.3213]
[1761010400727,1.37929,3961.5,3961.4,0.63250782]
[1761010401925,1.37929,3961.5,3961.4,1.08679782]
[1761010402126,0.90529,3961.4,3961.3,0.7756]
[1761010402317,0.90529,3961.4,3961.3,0.9867]
[1761010402727,1.24749,3961.4,3961.3,0.9867]
[1761010403032,1.24749,3961.4,3961.3,1.29461761]
[1761010403425,0.45432,3961.1,3961.0,0.2111]
[1761010403626,0.90532,3961.1,3961.0,0.2111]